Cogmind - Beta 17.1 @@@ ROGUE MODE // 2026.09.01 @ 12:01:25 Player: UnderDoug Result: Destroyed by S-10 Pest with Light Assault Rifle Performance ------------- Evolutions (0) 0 Regions Visited (2) 400 Robots Destroyed (16) 80 Value Destroyed (398) 398 Prototype IDs (0) 0 Alien Tech Used (0) 0 Bonus (0) 0 TOTAL SCORE: 878 Bonus ------- None Cogmind --------- Core Integrity 0/250 Matter 273/300 Energy 261/265 System Corruption 0% Temperature Cool (2) Movement Walking (190) Ox1 Location -10/Subcaves Parts ------- > --- POWER (1) -------- Improved Ion Engine > --- PROPULSION (2) --- Aluminum Leg Aluminum Leg > --- UTILITY (2) ------ Large Storage Unit Improved Terrain Scanner > --- WEAPON (2) ------- Battle Rifle Barrage Gun > --- INVENTORY (15) --- Subdweller Power Source Aluminum Leg Aluminum Leg Subdweller Monowheel Improved Heat Sink Visual Processing Unit Sensor Array Targeting Computer Light Armor Plating Scrap Shield Small Laser Subdweller Laser Battle Cannon Mining Laser Peak State ------------ > --- POWER ------------ Improved Ion Engine > --- PROPULSION ------- Aluminum Leg Aluminum Leg > --- UTILITY ---------- Large Storage Unit Improved Terrain Scanner > --- WEAPON ----------- Battle Rifle Barrage Gun > --- INVENTORY -------- Subdweller Power Source Aluminum Leg Aluminum Leg Subdweller Monowheel Improved Heat Sink Visual Processing Unit Sensor Array Targeting Computer Light Armor Plating Scrap Shield Small Laser Subdweller Laser Battle Cannon Mining Laser [Rating: 15] Favorites ----------- Power Improved Ion Engine Engine Improved Ion Engine Power Core Light Nuclear Core Propulsion Aluminum Leg Leg Aluminum Leg Utility Improved Terrain Scanner Device Improved Terrain Scanner Storage Large Storage Unit Weapon Medium Laser Energy Gun Medium Laser Ballistic Gun Light Assault Rifle Special Weapon Mining Laser Build | -11 -10 -10 ------- Run | Yrd Mat Sub Slots Evolved . | . . . Power . | . . . Propulsion . | . . . Utility . | . . . Weapon . | . . . Parts Attached 23 | 5 12 6 Power 5 | 1 3 1 Engine 4 | 1 2 1 Core 1 | . 1 . Reactor . | . . . Propulsion 6 | 1 3 2 Treads . | . . . Leg 6 | 1 3 2 Wheel . | . . . Hover . | . . . Flight . | . . . Utility 4 | 1 3 . Device 1 | . 1 . Storage 3 | 1 2 . Processor . | . . . Hackware . | . . . Protection . | . . . Artifact . | . . . Weapon 8 | 2 3 3 Energy Gun 3 | 2 1 . Energy Cannon . | . . . Ballistic Gun 4 | . 1 3 Ballistic Cannon . | . . . Launcher . | . . . Special Weapon 1 | . 1 . Impact Weapon . | . . . Slashing Weapon . | . . . Piercing Weapon . | . . . Special Melee Weapon . | . . . Unidentified Prototypes . | . . . Parts Lost 4 | . 4 . Power 1 | . 1 . Propulsion 2 | . 2 . Utility . | . . . Weapon 1 | . 1 . Highest Loss Streak 3 | . 3 . To Critical Strikes . | . . . Average Backups 11 | 4 10 13 Power 1 | . 2 1 Propulsion 3 | 3 4 3 Utility 3 | . 1 5 Weapon 2 | . 1 3 Tool/Special . | . . . Unused Backups 18 | . 3 15 Power 2 | . 1 1 Propulsion 5 | . 2 3 Utility 8 | . . 8 Weapon 3 | . . 3 Tool/Special . | . . . Average Slot Usage (%) 98 | . 98 99 Engine 9 | . 5 14 Core 4 | . 8 . Leg 27 | . 26 28 Device 10 | . 8 14 Storage 16 | . 19 14 Energy Gun 12 | . 17 5 Ballistic Gun 15 | . 9 22 Peak Build Rating 15 | 5 12 15 Average Rating 11 | 4 10 13 On Entrance 5 | . 5 11 Avg Prop Armor Cover (%) . | . . . Naked Turns . | . . . Heaviest Build 33 | 13 31 33 Greatest Support 20 | 10 20 20 Greatest Overweight (x) 7 | 4 7 1 Average Overweight (x) . | 1 . 1 Largest Inventory Capacity 15 | 8 15 15 Average Capacity 12 | 7 11 15 Most Carried 15 | 7 14 15 Average Carried 11 | 4 10 14 Final Capacity 15 | 8 15 15 Final Carried 15 | 7 13 15 Class Distribution -------------------- 70% | Mutant 29% | Scavenger-Mutant Dominant Class ---------------- Scavenger-Mutant | -10/Materials Mutant | -10/Subcaves Resources | -11 -10 -10 ----------- Run | Yrd Mat Sub Matter Collected 514 | 242 147 125 Remotely . | . . . Salvage Created 540 | . 341 199 Parts 29 | . 22 7 Haulers Intercepted . | . . . Recyclers Shooed . | . . . Parts Field Recycled . | . . . Retrieved Matter . | . . . Parts Self-Destructed 14 | . . 14 Prevented . | . . . Parts Restored . | . . . Kills | -11 -10 -10 ------- Run | Yrd Mat Sub Combat Hostiles Destroyed 14 | . 8 6 Guns 14 | . 8 6 Classes Destroyed 5 | . 4 1 Recycler 1 | . 1 . Watcher 1 | . 1 . Swarmer 6 | . 3 3 Grunt 5 | . 5 . Subdweller 3 | . . 3 Best Kill Streak 3 | . 3 3 Combat Bots Only 3 | . 3 3 Max Kills in Single Turn 1 | . 1 1 Gunslinging . | . . . Exploded . | . . . Melee . | . . . Uniques/NPCs Destroyed . | . . . Combat | -11 -10 -10 -------- Run | Yrd Mat Sub Hostile Shots Fired 158 | . 93 65 Missed 49 | . 30 19 Hits 109 | . 63 46 Projectile 109 | . 63 46 Critical Strikes 4 | . 1 3 Damage Taken 1309 | . 768 541 Core 251 | . 137 114 Absorbed by Shields . | . . . Core Remaining (%) 100 | 100 . . Volleys Fired 60 | . 41 19 Largest 2 | . 2 2 Hottest 100 | . 100 75 Shots Fired 118 | . 80 38 Gun 117 | . 79 38 Cannon . | . . . Launcher . | . . . Special 1 | . 1 . Kinetic 56 | . 25 31 Thermal 62 | . 55 7 Explosive . | . . . Electromagnetic . | . . . Robot Hit Streak 8 | . 8 6 Robot Miss Streak 5 | . 5 3 Penetration Max . | . . . Secondary Targets 4 | . 3 1 Max Gunslinging Chain 1 | . 1 1 Shots Hit Robots 64 | . 41 23 Core Hits 32 | . 22 10 Critical Kills . | . . . Critical Parts Destroyed . | . . . Critical Strikes . | . . . Melee Attacks . | . . . Impact . | . . . Slashing . | . . . Piercing . | . . . Sneak Attacks . | . . . Combat Hostiles . | . . . Follow-up Attacks . | . . . Damage Inflicted 861 | . 475 386 Guns 861 | . 475 386 Cannons . | . . . Explosions . | . . . Melee . | . . . Ramming . | . . . Kinetic 458 | . 133 325 Thermal 403 | . 342 61 Explosive . | . . . Electromagnetic . | . . . Impact . | . . . Slashing . | . . . Piercing . | . . . Highest Corruption . | . . . Average Corruption . | . . . Corruption Purged . | . . . Corruption Blocked . | . . . Overload Shots . | . . . Overflow Damage . | . . . Projectiles . | . . . Explosions . | . . . Melee . | . . . Knockbacks . | . . . Impact . | . . . Kinetic . | . . . Secondary . | . . . Self-Inflicted Damage . | . . . Shots . | . . . Rammed . | . . . Targets Rammed . | . . . Kicked . | . . . Crushed . | . . . Highest Temperature 258 | . 258 4 Average Temperature 79 | . 82 2 Received Heat Transfer 516 | . 411 105 Siege Activations . | . . . Martial Activations . | . . . Shielding Activations . | . . . Robots Disrupted . | . . . Combat Hostiles . | . . . Robots Corrupted . | . . . Combat Hostiles . | . . . Parts Fried . | . . . Impact Corruptions . | . . . Robots Melted . | . . . Combat Hostiles . | . . . Parts Melted 1 | . 1 . Heat Transferred 1161 | . 976 185 Parts Sabotaged . | . . . Parts Stolen . | . . . Parts Stripped . | . . . Power Chain Reactions . | . . . Alert | -11 -10 -10 ------- Run | Yrd Mat Sub Maximum Alert Level . | . . . Low Security (%) 100 | 100 100 . Level 1 . | . . . Level 2 . | . . . Level 3 . | . . . Level 4 . | . . . Level 5 . | . . . High Security . | . . . Max Security . | . . . Peak Influence 67 | . 67 . Initial . | . . . Average 8 | . 9 . Influence Increases 340 | . 235 105 Destroy 0b10 Robot/C 220 | . 160 60 Destroy 0b10 Robot/NC 10 | . 10 . Destroy Leader 42 | . 42 . Successful Hack 7 | . 7 . Destroy Structure 1 | . 1 . Lose Combat Pursuer 60 | . 15 45 Influence Decreases 331 | . 228 103 Entered New Map 4 | . . 4 Time Decay 287 | . 188 99 Lost Part 40 | . 40 . Squads Dispatched 2 | . 2 . Investigation 1 | . 1 . Extermination . | . . . Reinforcement 1 | . 1 . Assault . | . . . Garrison . | . . . Intercept . | . . . Searches Triggered . | . . . Construction Impeded . | . . . Haulers Reinforced . | . . . Active Scanning Responses . | . . . Cargo Convoy Interrupts . | . . . Stealth | -11 -10 -10 --------- Run | Yrd Mat Sub Distress Signals . | . . . Communications Jammed . | . . . Distress Signals . | . . . Times Spotted 30 | . 19 11 Peak Tracking Total 6 | . 6 4 Tactical Retreats 3 | . 1 2 Traps | -11 -10 -10 ------- Run | Yrd Mat Sub Traps Triggered . | . . . Indirectly . | . . . Trap Hack Attempts . | . . . Triggered . | . . . Disarmed . | . . . Reprogrammed . | . . . Reused . | . . . Traps Extracted . | . . . Installed . | . . . Triggered . | . . . Machines | -11 -10 -10 ---------- Run | Yrd Mat Sub Machines Disabled . | . . . Max in Single Turn . | . . . Machines Repaired . | . . . Machines Dismantled . | . . . Machines Sabotaged . | . . . Overloaded Fab Kills . | . . . Hacking | -11 -10 -10 --------- Run | Yrd Mat Sub Machines Accessed 6 | . 4 2 Terminals 3 | . 3 . Fabricators . | . . . Repair Stations 1 | . 1 . Recycling Units . | . . . Scanalyzers . | . . . Garrison Access . | . . . Total Hacks 14 | . 12 2 Successful 7 | . 5 2 Failed 7 | . 7 . Catastrophic 1 | . 1 . Database Lockouts . | . . . Manual . | . . . Terminals 9 | . 9 . Fabricators . | . . . Repair Stations 3 | . 3 . Recycling Units . | . . . Scanalyzers . | . . . Garrison Access . | . . . Terminal Hacks 5 | . 3 2 Open Door 1 | . . 1 Emergency Access Points 1 | . 1 . Alert Level 1 | . 1 . Zone Layout 1 | . 1 . Release Object 1 | . . 1 Fabricator Hacks . | . . . Repair Station Hacks 2 | . 2 . Scan Component 1 | . 1 . Repair 1 | . 1 . Recycling Unit Hacks . | . . . Scanalyzer . | . . . Garrison Access Hacks . | . . . Unauthorized Hacks . | . . . Terminals . | . . . Fabricators . | . . . Repair Stations . | . . . Recycling Units . | . . . Scanalyzers . | . . . Garrison Access . | . . . Data Cores Recovered . | . . . Used . | . . . Hacking Detections 4 | . 4 . Full Trace Events 1 | . 1 . Feedback Events . | . . . Feedback Blocked . | . . . Robot Schematics Acquired . | . . . Robots Built . | . . . Authchips . | . . . Time . | . . . Total Robot Build Rating . | . . . Part Schematics Acquired . | . . . Parts Built . | . . . Authchips . | . . . Time . | . . . Total Part Build Rating . | . . . Part Studies Acquired . | . . . Parts Repaired . | . . . Time 38 | . 38 . Parts Recycled . | . . . Recycled Matter . | . . . Retrieved Matter . | . . . Retrieved Components . | . . . Parts Scanalyzed . | . . . Part Schematics Acquired . | . . . Parts Damaged . | . . . Bothacking | -11 -10 -10 ------------ Run | Yrd Mat Sub Used RIF Installer . | . . . Robots Hacked . | . . . Non-combat . | . . . Combat . | . . . Robot Hacks Applied . | . . . Relay Couplers Released . | . . . Fabnet Peak Effective % . | . . . Robots Rewired . | . . . Allies Hacked . | . . . Hacks Repelled . | . . . Allies | -11 -10 -10 -------- Run | Yrd Mat Sub Total Allies . | . . . Largest Group . | . . . Highest-Rated Group . | . . . Highest-Rated Ally . | . . . Total Orders . | . . . Ally Attacks . | . . . Total Damage . | . . . Kills . | . . . Allies Corrupted . | . . . Allies Melted . | . . . Intel | -11 -10 -10 ------- Run | Yrd Mat Sub Active Infowar (turns) 1767 | . 732 1035 Terrain 1767 | . 732 1035 Robot Analysis Total . | . . . Derelict Logs Recovered 1 | . . 1 Drone Launches . | . . . Drone Recoveries . | . . . Exploration | -11 -10 -10 ------------- Run | Yrd Mat Sub Turns Passed 2388 | 116 1237 1035 Spaces Moved 1147 | 49 595 503 Core 13 | 9 4 . Treads . | . . . Legs 1134 | 40 591 503 Wheels . | . . . Hover . | . . . Flight . | . . . Fastest Speed 50 | 50 120 190 Average Speed 177 | 183 167 190 Slowest Speed 400 | 250 400 190 Overloaded Moves . | . . . Propulsion Burnouts . | . . . Robots Hopped . | . . . Potential Cave-ins . | . . . Cave-ins Triggered . | . . . Exploration Rate (%) 36 | 4 82 23 Regions Visited 2 Branch Regions 1 Pre-discovered Areas . | . . . Known Exits Taken . | . . . Unknown Exits Taken 2 | 1 1 . Scrap Searched 8 | . . 8 Spaces Dug 1 | . 1 . Terrain Destroyed 1 | . 1 . Melee . | . . . Projectile 1 | . 1 . AOE . | . . . Terrain Rammed . | . . . Walls Destroyed . | . . . Machines Disabled . | . . . Actions | -11 -10 -10 --------- Run | Yrd Mat Sub Total 1383 | 73 759 551 Wait 107 | 13 89 5 Move 1145 | 48 594 503 Hop . | . . . Pick Up 29 | 7 14 8 Fast Attach 11 | 5 5 1 Attach 4 | . 3 1 Detach 1 | . . 1 Swap 9 | . 5 4 Drop 16 | . 8 8 Fire 60 | . 41 19 Melee . | . . . Ram . | . . . Kick . | . . . Crush . | . . . Escape Stasis . | . . . Rewire . | . . . Trap . | . . . Miscellaneous 1 | . . 1 Route ------- -11/Scrapyard -10/Materials (discovered 5 exits: [*Mat x2] / [*Min x2] / *Sub) -10/Subcaves (discovered 1 exit: *Rec) History --------- Turn | Location | Event 16 | -11/Scrapyard | Discovered new exit (range 15) 117 | -11/Scrapyard | Entered Materials 201 | -10/Materials | Discovered new exit (range 16) 301 | -10/Materials | Build established: Mutant 409 | -10/Materials | Discovered new exit (range 7) 530 | -10/Materials | Core integrity fell below 50% 558 | -10/Materials | Lost 3 parts (1p2n) 904 | -10/Materials | Discovered new exit (range 14) 915 | -10/Materials | Build established: Scavenger-Mutant 1145 | -10/Materials | Discovered new exit (range 10) 1341 | -10/Materials | Discovered new exit (range 8) 1354 | -10/Materials | Entered Subcaves 1355 | -10/Subcaves | Approached by a straggling Scientist 1630 | -10/Subcaves | Build established: Mutant 1726 | -10/Subcaves | Identified exit to Recycling 1744 | -10/Subcaves | Disturbed a concealed Subdweller 1832 | -10/Subcaves | Disturbed a concealed Subdweller 2034 | -10/Subcaves | Released subatomizers from SUBCON Basin 2097 | -10/Subcaves | Core integrity fell below 20% 2389 | -10/Subcaves | Destroyed by S-10 Pest with Light Assault Rifle Last Messages --------------- Released subatomizers from SUBCON Basin. HD-9OO(c): "I think it's somewhere west of here" Destroyed Flight Unit. S-10 Pest destroyed. Switching to secondary target: S-10 Pest. Destroyed Flight Unit. S-10 Pest destroyed. HD-9OO(c): "I think it's somewhere west of here" Acquired 11 matter. Lgt. Assault Rifle fries itself beyond repair. Flight Unit fries itself beyond repair. Acquired 11 matter. HD-9OO(c): "I think it's somewhere west of here" HD-9OO(c): "I think it's somewhere southwest of here" HD-9OO(c): "I think it's somewhere south of here" Critical hit (Burn: +37). HD-9OO(c): "I think it's somewhere southeast of here" Map ----- +----------------------------------------------------+ | | | ?????????????????????????????????????????????? | | ?????????????????????????????????????????????? | | ?????????????????????????????????????????????? | | ?????????????????????????????????????????????? | | ?????????????????????????????????????????????? | | ?????????????????????????????????????#???????# | | ?????????????????????????????????????????????? | | ??????????????????????#????????????????????#?? | | ???????????????????????????????#?????#???????? | | ?????????????????#??????????????#????????????? | | ????????????????????#???????#??#??????????#??? | | ???????????????????????##????????#???????????? | | ?????????????????????#???????????#??#???????#? | | ????????????????????????????????????#????????? | | ????????#??????????###??????#??????########### | | ?????????????????#?# ##??#??????##?# ## | | ???????????????????# #????#???##??# | | ???????????????????# ##?#?#??## ### | | ????????????????#??# ####???# | | ??????????????#???## ##?# ## ## | | ????????????????### # ##???## #? | | ??????????????### ### #???## ### #? | | ???????#???????# #?### ##?## | | ???????????????# ### ###### #??# ## # | | ??????????????## @#####"# ##??#### ## | | ???????????????# ##?## ## #??????###? | | ???????????????# c #??#########???#?#?#?# | | ????#??????????# ##??##??????#?????#???? | | ???#???????????# #####??#??#???#?????##???? | | ???????????#?#?# ##?????????#???????????#?#? | | ????????#??????# s ###???????????????????????# | | ??????????????## #??#?????????????????????? | | ??????????????# #???#?#????????#?#???????? | | ??????????????### #???????#????????????????? | | ??????????#?????# #?????????????????????#??? | | ???????????????# #????????????#???????????# | | ????#??????#???# ##??#??#???#?????????????## | | ??#???????????? ##??##?????????????????????? | | ??????????????# #?#??#?????????????????????? | | ???????????##?# #??????????????????????????? | | ??????????????## ????????????????????#?????? | | ???????????????## ?????#???????????????##???? | | ????????????????# ??????????????????????????? | | ???????????#???? ??????????????????????????? | | ???????????????? ??????????????????????????? | | ???????????????? ??????????????????????????? | | ???????????????? ??????????????????????????? | | ???????????????? ????????????????????????#?? | | ???????????????? ??????????????????????????# | +----------------------------------------------------+ Best States ------------- Heat Dissipation 25 Energy Generation 14 Energy Capacity 265 Matter Stores 300 Matter Capacity 300 Sight Range 16 Terrain Scan Range 16 Terrain Scan Density 10 Evasion (%) 55 Item Schematics ----------------- None Robot Schematics ------------------ None Fabricated ------------ Nothing Repaired ---------- Nothing Studied --------- None Alien Tech Used ----------------- None Achievements -------------- None Challenges ------------ None Game ------ Seed WarpAmuletBay Manual? 0 Play Time 00:16:32 Cumulative 11.7 hours Start 2026.09.01 @ 11:47:06 End 2026.09.01 @ 12:01:25 Sessions 1 Manual Loads 0 Difficulty Rogue Special Mode None Game No. 22 Rogue 22 Adventurer 0 Explorer 0 Win Type - Total 0 Types 0/0/0/0/0/0/0/0/0/0 Lore% 24 Gallery% 13 Achievement% 14 Wizard Run 0 Options --------- Layout 1 ASCII 0 Keyboard 0 Movement Mouse Keybinds 0 Fullscreen 2 Font 24/X11 Map View 50x35 Zoom Use 0% Tactical HUD 0 Map Filters NONE Filters NONE Steam 1 RUN: fe95e381-4200-4bb7-a13c-2ae8797ba104